{"text_format":"1","workbook":"xlsx","n_sheets":2,"sheets":["Small Business","Sheet2"],"not_rendered":{"charts":0,"images":0,"macros":1,"external_links":0,"defined_names":0,"comments":0,"pivot_tables":0},"unopened":[],"bounds":{"document_bytes":16777216,"sheet_cells":100000,"rows_first":2000,"rows_last":500,"rows_between":2000,"halvings":0,"cell_chars":16384,"cell_head_chars":4096},"cells_cut":0,"cells_raw":0,"read":"whole","date_system":"1900"}

{"sheet":"Small Business","index":0,"n_rows":51,"n_cols":6,"rows_kept":51,"cut":false,"hidden":false,"merged":[[0,0,0,2]]}
["Forms",null,null,null,"Employment Tax Publications","Publications"]
["Employment Tax Forms","Supplemental Income (Rental)","Excise",null,"Publication 1, Your Rights as a TaxpayerPDF","IRS Tax Calendar for Small Business & Self Employed"]
["Employment Tax Forms:","Form 1040 or 1040-SR (Schedule A) Itemized Deductions ","Superfund Chemical Excise Taxes Reinstated",null,"Publication 15, Circular E, Employer's Tax Guide","Publication 15 ((Circular E), Employer's Tax Guide)"]
["Form 940, Employer's Annual Federal Unemployment Tax Return","Form 1040 or 1040-SR (Schedule B) Interest and Ordinary Dividends","Excise Tax on Coal",null,"Publication 15-A, Employer's Supplemental Tax Guide","Publication 1635 (Understanding Your EIN - Employer Identification Numbers.)"]
["Schedule A (Form 940), Multi-State Employer and Credit Reduction Information","Form 1040 or 1040-SR (Schedule C), Profit or Loss From Business (Sole Proprietorship)","Kerosene Used in Aviation - Form 720 Tax Liability Reporting",null,"Publication 15-B, Employer's Tax Guide to Fringe Benefits","Publication 1779 (Independent Contractor or Employee)"]
["Schedule R (Form 940), Allocation Schedule for Aggregate Form 940 FilersPDF","Form 1040 or 1040-SR (Schedule E), Supplemental Income and Loss ","Extended Fuel Tax Credits",null,"Publication 15-T, Federal Income Tax Withholding Methods","Publication 334 (Tax Guide for Small Business (For Individuals Who Use Schedule C or C-EZ))"]
["Form 941, Employer's Quarterly Federal Tax Return","Form 1040 or 1040-SR (Schedule F), Profit or Loss From Farming ","Sports Wagering",null,"Publication 51, Circular A, Agricultural Employer's Tax Guide","Publication 463 (Travel, Entertainment, Gift, and Car Expenses)"]
["Schedule B (Form 941), Employer's Record of Federal Tax Liability","Form 4562, Depreciation and Amortization ","Heavy Highway Vehicle Use Tax",null,"Publication 80, Circular SS, Federal Tax Guide for Employers in the U.S. Virgin Islands, Guam, American Samoa, and the Commonwealth of the Northern Mariana Islands","Publication 505 (Tax Withholding and Estimated Tax)"]
["Schedule D (Form 941), Report of Discrepancies Caused by Acquisitions, Statutory Mergers, or Consolidations ","Form 4684, Casualties and Thefts","Excise Tax on Indoor Tanning Services",null,"Publication 179, Circular PR - Federal Tax Guide for Employers in Puerto Rico","Publication 531 (Reporting Tip Income)"]
["Schedule R (Form 941), Allocation Schedule for Aggregate Form 941 Filers","Form 4797, Sales of Business Property","Excise Summary Terminal Activity Reporting System (ExSTARS)",null,"Publication 334, Tax Guide for Small Business","Publication 535 (Business Expenses)"]
["Form 8974, Qualified Small Business Payroll Tax Credit for Increasing Research Activities","Form 4835, Farm Rental Income and Expenses ","Publication 3536 - Motor Fuel Excise Tax EDI Guide ",null,"Publication 505, Tax Withholding and Estimated Tax","Publication 547 (Casualties, Disasters, and Thefts (Business and Nonbusiness))"]
["Form 941-X, Adjusted Employer’s QUARTERLY Federal Tax Return or Claim for Refund","Form 5213, Election to Postpone Determination As To Whether the Presumption Applies That an Activity is Engaged in for Profit","This publication is designed to provide the general requirements, specifications and procedures for the electronic filing of Internal Revenue Service (IRS) Form 720-TO, Terminal Operator Report and Form 720-CS, Carrier Summary Report. Excise Tax Electronic Data Interchange (EDI) Guides (Publication 3536)PDF.",null,"Publication 515, Withholding of Tax on Nonresident Aliens and Foreign Entities","Publication 560 (Retirement Plans for Small Business (SEP, SIMPLE, and Qualified Plans))"]
["Form 943, Employer's Annual Tax Return for Agricultural Employees","Form 6198, At-Risk Limitations","637 Registration Program",null,"Publication 517, Social Security and Other Information for Members of the Clergy & Religious Workers","Publication 583 (Starting a Business and Keeping Records)"]
["Form 943-X, Adjusted Employer’s Annual Federal Tax Return for Agricultural Employees or Claim for Refund","Form 8582, Passive Activity Loss Limitations","Online Form 637 Registration Status Check",null,"Publication 531, Reporting Tip Income","Publication 587 (Business Use of Your Home (Including Use by Day-Care Providers))"]
["Form 944, Employer’s Annual Federal Tax Return","Form 8825, Rental Real Estate Income and Expenses of a Partnership or an S Corporation","Idling Reduction Devices Exempt from 12-percent Retail Excise Tax",null,"Publication 583, Starting a Business and Keeping Records","Publication 598 (Tax on Unrelated Business Income of Exempt Organizations)"]
["Form 944-X, Adjusted Employer’s ANNUAL Federal Tax Return or Claim for Refund","Publication 527, Residential Rental Property (Including Rental of Vacation Homes) ",null,null,"Publication 926, Household Employer's Tax Guide","Publication 946 (How to Depreciate Property)"]
["Form 945, Annual Return of Withheld Federal Income Tax","Publication 534, Depreciating Property Placed in Service Before 1987PDF (PDF)",null,null,"Publication 957, Reporting Back Pay and Special Wage Payments to the Social Security Administration"]
["Form 945-X, Adjusted Annual Return of Withheld Federal Income Tax or Claim for Refund ","Publication 925. Passive Activity At-Risk Rules ",null,null,"Publication 966, Electronic Federal Tax Payment System (A Guide to Getting StartedPDF "]
["Form CT-1, Employer's Annual Railroad Retirement Tax Return","Publication 946, How to Depreciate Property",null,null,"Publication 1281, Backup Withholding for Missing and Incorrect Name/TIN(s) (Including instructions for reading tape cartridges and CD/DVD Formats)PDF "]
["Form CT-1X, Adjusted Employer's Annual Railroad Retirement Tax Return or Claim for RefundPDF",null,null,null,"Publication 1635, Understanding Your EINPDF "]
["Form CT-2, Employer's Annual Railroad Retirement Tax Return",null,null,null,"Publication 1779, Independent Contractor or EmployeePDF"]
["Form 8027, Employer's Annual Information Return of Tip Income and Allocated Tips",null,null,null,"Publication 1779, Independent Contractor or Employee (Spanish Version)PDF "]
["Forms to Obtain Information from Payees:",null,null,null,"Publication 1976, Do You Qualify for Relief under Section 530?PDF "]
["Form I-9, Employment Eligibility VerificationPDF",null,null,null,"Publication 3114, Compliance Check, Audit, Examination, or Review?PDF "]
["Form W-4, Employee's Withholding Certificate",null,null,null,"Publication 3144 - Tips on Tips (A Guide to Tip Income Reporting) for EmployerPDF "]
["Form W-4P, Withholding Certificate for Pension or Annuity Payments",null,null,null,"Publication 3148 - Tips on Tips (A Guide to Tip Income Reporting) for EmployeePDF"]
["Form W-9, Request for Taxpayer Identification Number and Certification",null,null,null,"Publication 3148 (SP) Reporting your Tip Income, SpanishPDF "]
["Form 8850, Pre-Screening Notice and Certification Request for the Work Opportunity and Welfare-to-Work Credits",null,null,null,"Publication 3953, Q&A's About Tax Court Proceedings for Determination of Employment Status Under IRC Section 7436PDF "]
["Informational Returns to Furnish to Payees and to File to the Appropriate Governmental Agency:",null,null,null,"Publication 4902 - Tax Tips for the Cosmetology and Barber IndustryPDF "]
["Form W-3, Transmittal of Wage and Tax Statements",null,null,null,"Publication 4902 (SP) - Tax Tips for the Cosmetology and Barber Industry, SpanishPDF  "]
["Form W-2, Wage and Tax Statement",null,null,null,"Publication 4902 (VN) - Tax Tips for the Cosmetology and Barber Industry, VietnamesePDF "]
["Form W-3C, Transmittal of Corrected Wage and Tax Statements",null,null,null,"Publication 4932 - Gaming Industry Tip Compliance Agreement (GITCA)PDF "]
["Form W-2C, Corrected Wage and Tax Statement",null,null,null,"Publication 4936 - Your Guide to Maintaining and Complying with GITCAPDF "]
["Form 1096, Annual Summary and Transmittal of U.S. Information Returns",null,null,null,"Publication 4985 - Gaming Industry Tip Compliance Agreement - for Tipped EmployeesPDF "]
["Form 1099-NEC, Nonemployee Compensation",null,null,null,"Publication 4985 (SP) - Gaming Industry Tip Compliance Agreement - for Tipped Employees – Spanish VersionPDF "]
["Form 1099-MISC, Miscellaneous Income",null,null,null,"Publication 5111 - Gaming Industry Tip Compliance Agreement (GITCA) Benefits to ParticipantsPDF "]
["Form 1094-C, Transmittal of Employer-Provided Health Insurance Offer and Coverage Information Returns",null,null,null,"Publication 5112 - Tip Rate Determination Agreement (TRDA) Benefits to ParticipantsPDF "]
["Form 1095-C, Employer-Provided Health Insurance Offer and Coverage",null,null,null,"Publication 5137, Fringe Benefit GuidePDF"]
["Form 1042-T, Annual Summary and Transmittal of Forms 1042-S",null,null,null,"Publication 5146 – Employment Tax Returns: Examinations and Appeal RightsPDF "]
["Form 1042-S, Foreign Person's U.S. Source Income Subject to Withholding "]
["Form 1042, Annual Withholding Tax Return for U.S. Source Income of Foreign Persons"]
["Forms Filed with the Appropriate Income Tax Return Related to Employment Taxes:"]
["Schedule H (Form 1040 or 1040-SR), Household Employment Taxes"]
["Form 4137, Social Security and Medicare Tax on Unreported Tip Income"]
["Form 8919, Uncollected Social Security and Medicare Tax on Wages"]
["Form 8959, Additional Medicare Tax"]
["Form 3800, General Business Credit"]
["Form 6765, Credit for Increasing Research Activities"]
["Miscellaneous Forms Associated with Employment Taxes:"]
["Form SS-4, Application for Employer Identification Number"]
["Form SS-8, Determination of Worker Status"]

{"sheet":"Sheet2","index":1,"n_rows":45,"n_cols":24,"rows_kept":45,"cut":false,"hidden":false,"merged":[[18,7,19,7],[18,8,19,8],[18,9,19,9]]}
[]
[]
[]
[]
[]
[]
[]
[]
[]
[]
[]
[]
[]
[]
[]
[]
[]
[]
[null,null,null,null,null,null,null,"Publication","Description","PDF File","Available"]
[null,null,null,null,null,null,null,null,null,null,"As Web Page"]
[null,null,null,null,null,null,null,"Publication 15","(Circular E), Employer's Tax Guide","3.30 MBPDF","Web Page",null,{"$f":"HYPERLINK(INDIRECT(J21),H21)","v":{"$error":"#REF!"}},{"$f":"H21&\" (\"&I21&\")\"","v":"Publication 15 ((Circular E), Employer's Tax Guide)"},"https://www.irs.gov/pub/irs-pdf/p15.pdf",null,null,null,null,{"$f":"HYPERLINK(O21,N21)","v":"Publication 15 ((Circular E), Employer's Tax Guide)"},null,"Publication 15",null,{"$f":"HYPERLINK(S21,L21)","v":0}]
[null,null,null,null,null,null,null,"Publication 334","Tax Guide for Small Business (For Individuals Who Use Schedule C or C-EZ)","2.49 MBPDF","Web Page",null,null,{"$f":"H22&\" (\"&I22&\")\"","v":"Publication 334 (Tax Guide for Small Business (For Individuals Who Use Schedule C or C-EZ))"},"https://www.irs.gov/pub/irs-pdf/p334.pdf",null,null,null,null,{"$f":"HYPERLINK(O22,N22)","v":"Publication 334 (Tax Guide for Small Business (For Individuals Who Use Schedule C or C-EZ))"},null,"Publication 334"]
[null,null,null,null,null,null,null,"Publication 463","Travel, Entertainment, Gift, and Car Expenses","1.85 MBPDF","Web Page",null,null,"Publication 463 (Travel, Entertainment, Gift, and Car Expenses)","https://www.irs.gov/pub/irs-pdf/p463.pdf",null,null,null,null,"Publication 463 (Travel, Entertainment, Gift, and Car Expenses)",null,"Publication 463"]
[null,null,null,null,null,null,null,"Publication 505","Tax Withholding and Estimated Tax","1.88 MBPDF","Web Page",null,null,"Publication 505 (Tax Withholding and Estimated Tax)","https://www.irs.gov/pub/irs-pdf/p505.pdf",null,null,null,null,"Publication 505 (Tax Withholding and Estimated Tax)",null,"Publication 505"]
[null,null,null,null,null,null,null,"Publication 531","Reporting Tip Income","2.04 MBPDF","Web Page",null,null,"Publication 531 (Reporting Tip Income)","https://www.irs.gov/pub/irs-pdf/p531.pdf",null,null,null,null,"Publication 531 (Reporting Tip Income)",null,"Publication 531"]
[null,null,null,null,null,null,null,"Publication 535","Business Expenses","1.68 MBPDF","Web Page",null,null,"Publication 535 (Business Expenses)","https://www.irs.gov/pub/irs-pdf/p535.pdf",null,null,null,null,"Publication 535 (Business Expenses)",null,"Publication 535"]
[null,null,null,null,null,null,null,"Publication 547","Casualties, Disasters, and Thefts (Business and Nonbusiness)","2.23 MBPDF","Web Page",null,null,"Publication 547 (Casualties, Disasters, and Thefts (Business and Nonbusiness))","https://www.irs.gov/pub/irs-pdf/p547.pdf",null,null,null,null,"Publication 547 (Casualties, Disasters, and Thefts (Business and Nonbusiness))",null,"Publication 547"]
[null,null,null,null,null,null,null,"Publication 560","Retirement Plans for Small Business (SEP, SIMPLE, and Qualified Plans)","2.24 MBPDF","Web Page",null,null,"Publication 560 (Retirement Plans for Small Business (SEP, SIMPLE, and Qualified Plans))","https://www.irs.gov/pub/irs-pdf/p560.pdf",null,null,null,null,"Publication 560 (Retirement Plans for Small Business (SEP, SIMPLE, and Qualified Plans))",null,"Publication 560"]
[null,null,null,null,null,null,null,"Publication 583","Starting a Business and Keeping Records","2.23 MBPDF","Web Page",null,null,"Publication 583 (Starting a Business and Keeping Records)","https://www.irs.gov/pub/irs-pdf/p583.pdf",null,null,null,null,"Publication 583 (Starting a Business and Keeping Records)",null,"Publication 583"]
[null,null,null,null,null,null,null,"Publication 587","Business Use of Your Home (Including Use by Day-Care Providers)","1.35 MBPDF","Web Page",null,null,"Publication 587 (Business Use of Your Home (Including Use by Day-Care Providers))","https://www.irs.gov/pub/irs-pdf/p587.pdf",null,null,null,null,"Publication 587 (Business Use of Your Home (Including Use by Day-Care Providers))",null,"Publication 587"]
[null,null,null,null,null,null,null,"Publication 598","Tax on Unrelated Business Income of Exempt Organizations","2.19 MBPDF","Web Page",null,null,"Publication 598 (Tax on Unrelated Business Income of Exempt Organizations)","https://www.irs.gov/pub/irs-pdf/p598.pdf",null,null,null,null,"Publication 598 (Tax on Unrelated Business Income of Exempt Organizations)",null,"Publication 598"]
[null,null,null,null,null,null,null,"Publication 946","How to Depreciate Property","2.13 MBPDF","Web Page",null,null,"Publication 946 (How to Depreciate Property)","https://www.irs.gov/pub/irs-pdf/p946.pdf",null,null,null,null,"Publication 946 (How to Depreciate Property)",null,"Publication 946"]
[null,null,null,null,null,null,null,"Publication 1635","Understanding Your EIN - Employer Identification Numbers. This publication is designed to educate the public about the Employer Identification Number (EIN). It explains what an EIN is, how to know if you need one for your business and provides application criteria.","823 KBPDF","No",null,null,"Publication 1635 (Understanding Your EIN - Employer Identification Numbers. This publication is designed to educate the public about the Employer Identification Number (EIN). It explains what an EIN is, how to know if you need one for your business and provides application criteria.)","https://www.irs.gov/pub/irs-pdf/p1635.pdf",null,null,null,null,"Publication 1635 (Understanding Your EIN - Employer Identification Numbers. This publication is designed to educate the public about the Employer Identification Number (EIN). It explains what an EIN is, how to know if you need one for your business and provides application criteria.)",null,"Publication 1635"]
[null,null,null,null,null,null,null,"Publication 1779","Independent Contractor or Employee","282 KBPDF","No",null,null,"Publication 1779 (Independent Contractor or Employee)","https://www.irs.gov/pub/irs-pdf/p1779.pdf",null,null,null,null,"Publication 1779 (Independent Contractor or Employee)",null,"Publication 1779"]
[null,null,null,null,null,null,null,null,null,null,null,null,null," ()"]
[null,null,null,null,null,null,null,null,null,null,null,null,null," ()"]
[null,null,null,null,null,null,null,null,null,null,null,null,null," ()"]
[null,null,null,null,null,null,null,null,null,null,null,null,null," ()"]
[null,null,null,null,null,null,null,null,null,null,null,null,null," ()"]
[null,null,null,null,null,null,null,null,null,null,null,null,null," ()"]
[null,null,null,null,null,null,null,null,null,null,null,null,null," ()"]
[null,null,null,null,null,null,null,null,null,null,null,null,null," ()"]
[null,null,null,null,null,null,null,null,null,null,null,null,null," ()"]
[null,null,null,null,null,null,null,null,null,null,null,null,null," ()"]
[null,null,null,null,null,null,null,null,null,null,null,null,null," ()"]